[Event "*** SCC Grand Prix: Titled Tuesday Blitz"]
[Site "Chess.com"]
[Date "2020.08.25"]
[Round "7"]
[White "esrosenberg"]
[Black "Nafania1"]
[Result "1/2-1/2"]
[WhiteElo "2201"]
[BlackElo "2447"]
[TimeControl "180+1"]
[EndTime "11:20:42 PDT"]
[Termination "Game drawn by stalemate"]

1. Nf3 {[%clk 0:03:00.9]} 1... c5 {[%clk 0:02:59.4]} 2. c4 {[%clk 0:02:59]} 2...
Nc6 {[%clk 0:02:59]} 3. g3 {[%clk 0:02:57.3]} 3... g6 {[%clk 0:02:59.1]} 4. Bg2
{[%clk 0:02:57.8]} 4... Bg7 {[%clk 0:02:59.5]} 5. Nc3 {[%clk 0:02:58.3]} 5... d6
{[%clk 0:02:59.8]} 6. O-O {[%clk 0:02:58]} 6... Bf5 {[%clk 0:02:59.9]} 7. a3
{[%clk 0:02:46.1]} 7... Qd7 {[%clk 0:02:59.2]} 8. b4 {[%clk 0:02:42.7]} 8... Bh3
{[%clk 0:02:47.8]} 9. Rb1 {[%clk 0:02:33.3]} 9... Bxg2 {[%clk 0:02:44.8]} 10.
Kxg2 {[%clk 0:02:33.2]} 10... b6 {[%clk 0:02:41.1]} 11. d4 {[%clk 0:02:17.6]}
11... Nxd4 {[%clk 0:02:31.1]} 12. Nxd4 {[%clk 0:02:15.5]} 12... cxd4 {[%clk
0:02:31.5]} 13. Nd5 {[%clk 0:02:08.4]} 13... e6 {[%clk 0:02:25.1]} 14. Nf4
{[%clk 0:01:48.9]} 14... Ne7 {[%clk 0:02:24.5]} 15. Bb2 {[%clk 0:01:30.1]} 15...
e5 {[%clk 0:02:24.2]} 16. Nd5 {[%clk 0:01:09.1]} 16... Qc6 {[%clk 0:02:12.3]}
17. b5 {[%clk 0:01:07.8]} 17... Qb7 {[%clk 0:02:09.2]} 18. e4 {[%clk 0:01:01.7]}
18... dxe3 {[%clk 0:02:04.3]} 19. fxe3 {[%clk 0:01:01.6]} 19... O-O {[%clk
0:01:56.2]} 20. e4 {[%clk 0:01:00]} 20... Nxd5 {[%clk 0:01:56.4]} 21. cxd5
{[%clk 0:00:47.1]} 21... Rac8 {[%clk 0:01:55.6]} 22. a4 {[%clk 0:00:43.8]} 22...
Rc4 {[%clk 0:01:52.3]} 23. Re1 {[%clk 0:00:26.1]} 23... f5 {[%clk 0:01:49.7]}
24. exf5 {[%clk 0:00:18.6]} 24... gxf5 {[%clk 0:01:39.5]} 25. Rc1 {[%clk
0:00:16.5]} 25... Rxc1 {[%clk 0:01:33.9]} 26. Bxc1 {[%clk 0:00:16.6]} 26... f4
{[%clk 0:01:32.4]} 27. gxf4 {[%clk 0:00:15.8]} 27... exf4 {[%clk 0:01:32.8]} 28.
Re6 {[%clk 0:00:14.6]} 28... f3+ {[%clk 0:01:32.2]} 29. Kf2 {[%clk 0:00:11.8]}
29... Be5 {[%clk 0:01:26.3]} 30. Qd3 {[%clk 0:00:08.9]} 30... Qg7 {[%clk
0:01:22.9]} 31. Qf1 {[%clk 0:00:05.4]} 31... Bd4+ {[%clk 0:01:22]} 32. Be3
{[%clk 0:00:04.7]} 32... Bxe3+ {[%clk 0:01:20.4]} 33. Rxe3 {[%clk 0:00:05.6]}
33... Qb2+ {[%clk 0:01:15.1]} 34. Kg3 {[%clk 0:00:05.8]} 34... f2 {[%clk
0:01:08.4]} 35. Kg2 {[%clk 0:00:04.4]} 35... Qd4 {[%clk 0:01:04.4]} 36. Rg3+
{[%clk 0:00:02.9]} 36... Kh8 {[%clk 0:01:04.8]} 37. Rf3 {[%clk 0:00:02.1]} 37...
Qxd5 {[%clk 0:01:04.2]} 38. Qxf2 {[%clk 0:00:01.6]} 38... Rxf3 {[%clk
0:01:02.5]} 39. Qxf3 {[%clk 0:00:02.5]} 39... Qxf3+ {[%clk 0:01:02.4]} 40. Kxf3
{[%clk 0:00:03.4]} 40... Kg7 {[%clk 0:01:01.9]} 41. Ke4 {[%clk 0:00:04.3]} 41...
Kf6 {[%clk 0:01:02.2]} 42. Kd5 {[%clk 0:00:04]} 42... Ke7 {[%clk 0:01:02.3]} 43.
Kc6 {[%clk 0:00:02.8]} 43... Ke6 {[%clk 0:01:01.1]} 44. Kb7 {[%clk 0:00:03.1]}
44... d5 {[%clk 0:01:01.5]} 45. Kxa7 {[%clk 0:00:03.7]} 45... d4 {[%clk
0:01:01.9]} 46. Kxb6 {[%clk 0:00:04.3]} 46... d3 {[%clk 0:01:02.3]} 47. a5
{[%clk 0:00:05.2]} 47... d2 {[%clk 0:01:02.7]} 48. a6 {[%clk 0:00:06.1]} 48...
d1=Q {[%clk 0:01:03]} 49. a7 {[%clk 0:00:07]} 49... Qd4+ {[%clk 0:01:02.4]} 50.
Kb7 {[%clk 0:00:06.6]} 50... Qd7+ {[%clk 0:01:01.9]} 51. Ka6 {[%clk 0:00:04.1]}
51... Qc8+ {[%clk 0:01:01.3]} 52. Kb6 {[%clk 0:00:04.2]} 52... Kd6 {[%clk
0:01:00.4]} 53. h4 {[%clk 0:00:03.3]} 53... h5 {[%clk 0:01:00]} 54. a8=Q {[%clk
0:00:01.8]} 54... Qc5+ {[%clk 0:00:38.1]} 55. Ka6 {[%clk 0:00:02.2]} 55... Qa3+
{[%clk 0:00:36.9]} 56. Kb7 {[%clk 0:00:03.1]} 56... Qxa8+ {[%clk 0:00:32.9]} 57.
Kxa8 {[%clk 0:00:04]} 57... Kc5 {[%clk 0:00:33.3]} 58. Kb7 {[%clk 0:00:04.4]}
58... Kxb5 {[%clk 0:00:33.5]} 59. Kc7 {[%clk 0:00:04.4]} 59... Kc5 {[%clk
0:00:33.8]} 60. Kd7 {[%clk 0:00:04.1]} 60... Kd5 {[%clk 0:00:34.1]} 61. Kc7
{[%clk 0:00:04.7]} 61... Ke5 {[%clk 0:00:34]} 62. Kc6 {[%clk 0:00:05.6]} 62...
Kf4 {[%clk 0:00:34.2]} 63. Kd5 {[%clk 0:00:06.5]} 63... Kg4 {[%clk 0:00:34.5]}
64. Ke4 {[%clk 0:00:07.1]} 64... Kxh4 {[%clk 0:00:34.8]} 65. Kf4 {[%clk
0:00:08]} 65... Kh3 {[%clk 0:00:35]} 66. Kf3 {[%clk 0:00:08.4]} 66... Kh2 {[%clk
0:00:35.2]} 67. Kf2 {[%clk 0:00:08.7]} 67... h4 {[%clk 0:00:35.7]} 68. Kf1
{[%clk 0:00:09.1]} 68... h3 {[%clk 0:00:36]} 69. Kf2 {[%clk 0:00:09.5]} 69...
Kh1 {[%clk 0:00:36.5]} 70. Kf1 {[%clk 0:00:09.9]} 70... h2 {[%clk 0:00:37]} 71.
Kf2 {[%clk 0:00:10.2]} 1/2-1/2

[Event "*** SCC Grand Prix: Titled Tuesday Blitz"]
[Site "Chess.com"]
[Date "2020.08.25"]
[Round "7"]
[White "GAusal"]
[Black "dosto07"]
[Result "0-1"]
[WhiteElo "2162"]
[BlackElo "2323"]
[TimeControl "180+1"]
[EndTime "11:20:43 PDT"]
[Termination "dosto07 won on time"]

1. d4 {[%clk 0:03:00.9]} 1... d5 {[%clk 0:02:57.2]} 2. Bf4 {[%clk 0:02:59.7]}
2... Nf6 {[%clk 0:02:56]} 3. e3 {[%clk 0:02:56.3]} 3... c5 {[%clk 0:02:54.5]} 4.
c3 {[%clk 0:02:52.9]} 4... Nc6 {[%clk 0:02:54.2]} 5. Bd3 {[%clk 0:02:50.8]} 5...
Qb6 {[%clk 0:02:52.2]} 6. Qb3 {[%clk 0:02:45.8]} 6... c4 {[%clk 0:02:50]} 7.
Qxb6 {[%clk 0:02:41.7]} 7... axb6 {[%clk 0:02:50.9]} 8. Bc2 {[%clk 0:02:38.1]}
8... b5 {[%clk 0:02:51.1]} 9. Na3 {[%clk 0:02:34.9]} 9... b4 {[%clk 0:02:38.3]}
10. Nb5 {[%clk 0:02:32.9]} 10... Ra5 {[%clk 0:02:35.9]} 11. a4 {[%clk
0:02:28.5]} 11... bxa3 {[%clk 0:02:29.9]} 12. Nxa3 {[%clk 0:02:27.4]} 12... e6
{[%clk 0:02:14]} 13. Nf3 {[%clk 0:02:24.3]} 13... Be7 {[%clk 0:02:11.7]} 14. Bc7
{[%clk 0:02:20.3]} 14... Ra8 {[%clk 0:02:06.7]} 15. Ke2 {[%clk 0:02:15.4]} 15...
Bd7 {[%clk 0:02:04.8]} 16. Nb5 {[%clk 0:02:11.4]} 16... O-O {[%clk 0:02:02.2]}
17. Bd6 {[%clk 0:02:06.4]} 17... Bxd6 {[%clk 0:01:57.5]} 18. Nxd6 {[%clk
0:02:05.1]} 18... b6 {[%clk 0:01:56.7]} 19. h3 {[%clk 0:02:00.6]} 19... Rfb8
{[%clk 0:01:55.7]} 20. Ng5 {[%clk 0:01:54.3]} 20... Be8 {[%clk 0:01:47.9]} 21.
Nxe8 {[%clk 0:01:49.2]} 21... Nxe8 {[%clk 0:01:45.8]} 22. Bxh7+ {[%clk
0:01:44.4]} 22... Kf8 {[%clk 0:01:44.6]} 23. Bc2 {[%clk 0:01:39.9]} 23... Nd6
{[%clk 0:01:42.1]} 24. e4 {[%clk 0:01:33.6]} 24... b5 {[%clk 0:01:37.1]} 25.
exd5 {[%clk 0:01:32.5]} 25... exd5 {[%clk 0:01:36.3]} 26. Kd2 {[%clk 0:01:22.5]}
26... b4 {[%clk 0:01:35.5]} 27. Ba4 {[%clk 0:01:13.1]} 27... Na5 {[%clk
0:01:31.3]} 28. Bc2 {[%clk 0:01:03.7]} 28... Nb3+ {[%clk 0:01:30.3]} 29. Bxb3
{[%clk 0:01:03.3]} 29... cxb3 {[%clk 0:01:29.5]} 30. cxb4 {[%clk 0:00:53.3]}
30... Rxa1 {[%clk 0:01:05.8]} 31. Rxa1 {[%clk 0:00:51.3]} 31... Rxb4 {[%clk
0:01:06.7]} 32. Kc3 {[%clk 0:00:51.3]} 32... Rc4+ {[%clk 0:01:04.9]} 33. Kd3
{[%clk 0:00:50.1]} 33... Rc2 {[%clk 0:01:00.4]} 34. Ra6 {[%clk 0:00:36.8]} 34...
Ke7 {[%clk 0:00:54.5]} 35. Ra7+ {[%clk 0:00:26.2]} 35... Ke8 {[%clk 0:00:51.9]}
36. Ra8+ {[%clk 0:00:25.2]} 36... Ke7 {[%clk 0:00:51.9]} 37. Ra7+ {[%clk
0:00:25.3]} 37... Kf6 {[%clk 0:00:50.4]} 38. Ra6 {[%clk 0:00:22.6]} 38... Kxg5
{[%clk 0:00:40.1]} 39. Rxd6 {[%clk 0:00:21.5]} 39... Rxb2 {[%clk 0:00:39.9]} 40.
Rxd5+ {[%clk 0:00:21.1]} 40... Kf6 {[%clk 0:00:38.4]} 41. Ke3 {[%clk 0:00:20.9]}
41... Rc2 {[%clk 0:00:32.6]} 42. Rb5 {[%clk 0:00:21.1]} 42... b2 {[%clk
0:00:32.3]} 43. Kf3 {[%clk 0:00:20.2]} 43... g5 {[%clk 0:00:30.5]} 44. g4 {[%clk
0:00:16.7]} 44... Ke6 {[%clk 0:00:28.6]} 45. Kg3 {[%clk 0:00:07.2]} 45... f6
{[%clk 0:00:21.9]} 46. f3 {[%clk 0:00:06.7]} 46... Kd6 {[%clk 0:00:20.4]} 47. h4
{[%clk 0:00:06.8]} 47... Kc6 {[%clk 0:00:19.4]} 48. Rb3 {[%clk 0:00:05.5]} 48...
gxh4+ {[%clk 0:00:17.6]} 49. Kxh4 {[%clk 0:00:05]} 49... Kd5 {[%clk 0:00:18.5]}
50. f4 {[%clk 0:00:05.2]} 50... Kxd4 {[%clk 0:00:17.5]} 51. g5 {[%clk
0:00:05.5]} 51... f5 {[%clk 0:00:11.8]} 52. g6 {[%clk 0:00:04.2]} 52... Kc4
{[%clk 0:00:06.4]} 53. Rb7 {[%clk 0:00:03.7]} 53... Rg2 {[%clk 0:00:04.5]} 0-1

[Event "*** SCC Grand Prix: Titled Tuesday Blitz"]
[Site "Chess.com"]
[Date "2020.08.25"]
[Round "7"]
[White "serhanberat_ozdemir"]
[Black "hongnhung1234"]
[Result "0-1"]
[WhiteElo "2481"]
[BlackElo "2367"]
[TimeControl "180+1"]
[EndTime "11:20:45 PDT"]
[Termination "hongnhung1234 won on time"]

1. e4 {[%clk 0:02:59.5]} 1... c5 {[%clk 0:03:00]} 2. Nf3 {[%clk 0:02:59.7]} 2...
e6 {[%clk 0:03:00.4]} 3. c3 {[%clk 0:02:59.7]} 3... Nf6 {[%clk 0:02:59.9]} 4. e5
{[%clk 0:03:00]} 4... Nd5 {[%clk 0:02:59.3]} 5. d4 {[%clk 0:03:00.9]} 5... cxd4
{[%clk 0:03:00.2]} 6. cxd4 {[%clk 0:03:01.8]} 6... Nc6 {[%clk 0:03:00.3]} 7. a3
{[%clk 0:03:01.6]} 7... d6 {[%clk 0:03:00.3]} 8. Bd3 {[%clk 0:03:02.2]} 8...
dxe5 {[%clk 0:02:58.1]} 9. dxe5 {[%clk 0:03:03.1]} 9... Be7 {[%clk 0:02:51.3]}
10. O-O {[%clk 0:03:02.7]} 10... O-O {[%clk 0:02:51.7]} 11. Qe2 {[%clk
0:03:02.8]} 11... f5 {[%clk 0:02:42.6]} 12. exf6 {[%clk 0:03:01.5]} 12... gxf6
{[%clk 0:02:28.2]} 13. Bh6 {[%clk 0:03:00.7]} 13... Rf7 {[%clk 0:02:24.2]} 14.
Nbd2 {[%clk 0:03:00.3]} 14... f5 {[%clk 0:02:18]} 15. Nc4 {[%clk 0:02:49.4]}
15... Bf6 {[%clk 0:02:11.7]} 16. Rad1 {[%clk 0:02:47.7]} 16... Bd7 {[%clk
0:02:05.1]} 17. Nce5 {[%clk 0:02:45.7]} 17... Nxe5 {[%clk 0:02:01.8]} 18. Nxe5
{[%clk 0:02:46.6]} 18... Bxe5 {[%clk 0:02:01.4]} 19. Qxe5 {[%clk 0:02:47.5]}
19... Qf6 {[%clk 0:02:00.8]} 20. Qxf6 {[%clk 0:02:44.1]} 20... Rxf6 {[%clk
0:02:01.7]} 21. Bg5 {[%clk 0:02:43.2]} 21... Rg6 {[%clk 0:02:01.5]} 22. Bc1
{[%clk 0:02:35.4]} 22... Bc6 {[%clk 0:01:57.2]} 23. Rfe1 {[%clk 0:02:33.6]}
23... Kf7 {[%clk 0:01:49.4]} 24. b4 {[%clk 0:02:22.7]} 24... Nc3 {[%clk
0:01:27.6]} 25. g3 {[%clk 0:02:20.5]} 25... Nxd1 {[%clk 0:01:26.2]} 26. Rxd1
{[%clk 0:02:21.4]} 26... Rgg8 {[%clk 0:01:22]} 27. Re1 {[%clk 0:02:03.1]} 27...
Rge8 {[%clk 0:01:18.1]} 28. Bf4 {[%clk 0:02:01.9]} 28... Rad8 {[%clk 0:01:15.4]}
29. Bc2 {[%clk 0:02:02.3]} 29... Bd5 {[%clk 0:01:07.5]} 30. h4 {[%clk
0:01:56.5]} 30... Rc8 {[%clk 0:01:07]} 31. Bd3 {[%clk 0:01:51.7]} 31... Rc3
{[%clk 0:01:03.4]} 32. Bb5 {[%clk 0:01:51.9]} 32... Rec8 {[%clk 0:01:00.1]} 33.
Ra1 {[%clk 0:01:20.1]} 33... a6 {[%clk 0:00:54.3]} 34. Bd7 {[%clk 0:01:19.4]}
34... Rd8 {[%clk 0:00:54.4]} 35. Ba4 {[%clk 0:01:17.1]} 35... Bb3 {[%clk
0:00:50.6]} 36. Be5 {[%clk 0:01:10.7]} 36... Rcd3 {[%clk 0:00:49.5]} 37. Bxb3
{[%clk 0:01:07.5]} 37... Rxb3 {[%clk 0:00:50.4]} 38. Rc1 {[%clk 0:01:03.7]}
38... Rd7 {[%clk 0:00:48.9]} 39. Rc8 {[%clk 0:00:59.6]} 39... Rxa3 {[%clk
0:00:47.6]} 40. h5 {[%clk 0:00:59.3]} 40... Ra2 {[%clk 0:00:40.2]} 41. Rh8
{[%clk 0:00:54.7]} 41... Rd1+ {[%clk 0:00:40.1]} 42. Kg2 {[%clk 0:00:48.1]}
42... Rdd2 {[%clk 0:00:41]} 43. Rxh7+ {[%clk 0:00:47.4]} 43... Ke8 {[%clk
0:00:36.8]} 44. Kh3 {[%clk 0:00:35.3]} 44... Rxf2 {[%clk 0:00:35.9]} 45. Kh4
{[%clk 0:00:35.1]} 45... Rae2 {[%clk 0:00:31]} 46. Bf6 {[%clk 0:00:33.4]} 46...
Re4+ {[%clk 0:00:29.8]} 47. Kg5 {[%clk 0:00:31.2]} 47... Rg2 {[%clk 0:00:26]}
48. Rxb7 {[%clk 0:00:28.4]} 48... Rxg3+ {[%clk 0:00:25.9]} 49. Kh6 {[%clk
0:00:28.9]} 49... Reg4 {[%clk 0:00:21.2]} 50. Kh7 {[%clk 0:00:19.7]} 50... f4
{[%clk 0:00:19.6]} 51. Be5 {[%clk 0:00:08.4]} 51... Rg5 {[%clk 0:00:17.9]} 52.
Rb8+ {[%clk 0:00:05.3]} 52... Kd7 {[%clk 0:00:17.7]} 53. Kh6 {[%clk 0:00:01.6]}
53... Rxe5 {[%clk 0:00:17.2]} 0-1

[Event "*** SCC Grand Prix: Titled Tuesday Blitz"]
[Site "Chess.com"]
[Date "2020.08.25"]
[Round "7"]
[White "Srisshhhtea"]
[Black "zmarian"]
[Result "0-1"]
[WhiteElo "2261"]
[BlackElo "2175"]
[TimeControl "180+1"]
[EndTime "11:20:47 PDT"]
[Termination "zmarian won by checkmate"]

1. d4 {[%clk 0:02:57.2]} 1... g6 {[%clk 0:02:59.5]} 2. e4 {[%clk 0:02:56.5]}
2... Bg7 {[%clk 0:02:59.8]} 3. Nc3 {[%clk 0:02:51.2]} 3... d6 {[%clk 0:02:59.1]}
4. Nf3 {[%clk 0:02:46.6]} 4... c6 {[%clk 0:02:58.6]} 5. Be2 {[%clk 0:02:45.8]}
5... Nf6 {[%clk 0:02:57.2]} 6. h3 {[%clk 0:02:45]} 6... O-O {[%clk 0:02:57]} 7.
O-O {[%clk 0:02:42.3]} 7... Nbd7 {[%clk 0:02:56.3]} 8. Be3 {[%clk 0:02:41.9]}
8... e5 {[%clk 0:02:55.9]} 9. Qd2 {[%clk 0:02:34.1]} 9... Qe7 {[%clk 0:02:52.7]}
10. dxe5 {[%clk 0:02:28.5]} 10... dxe5 {[%clk 0:02:51.2]} 11. Bh6 {[%clk
0:02:16.4]} 11... Nc5 {[%clk 0:02:46.1]} 12. Bxg7 {[%clk 0:02:15.3]} 12... Kxg7
{[%clk 0:02:42.4]} 13. Qe3 {[%clk 0:02:14.1]} 13... a5 {[%clk 0:02:38.8]} 14.
Nd2 {[%clk 0:02:10.2]} 14... Be6 {[%clk 0:02:35]} 15. Bc4 {[%clk 0:02:07.5]}
15... b5 {[%clk 0:02:26.7]} 16. Bxe6 {[%clk 0:02:04.8]} 16... Nxe6 {[%clk
0:02:26.3]} 17. Ne2 {[%clk 0:02:01.4]} 17... Rfd8 {[%clk 0:02:19.3]} 18. c3
{[%clk 0:01:59.9]} 18... Qc5 {[%clk 0:02:10.6]} 19. Qxc5 {[%clk 0:01:33.5]}
19... Nxc5 {[%clk 0:02:09.2]} 20. Rfd1 {[%clk 0:01:30.5]} 20... Ncxe4 {[%clk
0:02:08.9]} 21. Nxe4 {[%clk 0:01:27.9]} 21... Nxe4 {[%clk 0:02:08.9]} 22. Re1
{[%clk 0:01:26.1]} 22... f6 {[%clk 0:02:06]} 23. f3 {[%clk 0:01:15.4]} 23... Nc5
{[%clk 0:02:01.6]} 24. Red1 {[%clk 0:01:10.8]} 24... Kf7 {[%clk 0:01:56.5]} 25.
Ng3 {[%clk 0:01:09.7]} 25... f5 {[%clk 0:01:53.6]} 26. Kf1 {[%clk 0:01:08.8]}
26... Ke7 {[%clk 0:01:43.1]} 27. Ke2 {[%clk 0:01:08.2]} 27... Na4 {[%clk
0:01:41.2]} 28. Rxd8 {[%clk 0:01:02.9]} 28... Rxd8 {[%clk 0:01:39.1]} 29. Rb1
{[%clk 0:01:02.5]} 29... c5 {[%clk 0:01:33.5]} 30. Nf1 {[%clk 0:01:01.6]} 30...
c4 {[%clk 0:01:31.5]} 31. Ne3 {[%clk 0:00:59.7]} 31... Ke6 {[%clk 0:01:28.9]}
32. h4 {[%clk 0:00:55.2]} 32... Rd3 {[%clk 0:01:27.2]} 33. Nd1 {[%clk
0:00:53.7]} 33... h6 {[%clk 0:01:23.9]} 34. Nf2 {[%clk 0:00:54.1]} 34... Rd7
{[%clk 0:01:22.3]} 35. Nd1 {[%clk 0:00:47.7]} 35... Kf6 {[%clk 0:01:16.6]} 36.
b3 {[%clk 0:00:46.4]} 36... cxb3 {[%clk 0:01:10.5]} 37. Rxb3 {[%clk 0:00:46.9]}
37... Rd5 {[%clk 0:01:04.8]} 38. Ne3 {[%clk 0:00:27.9]} 38... Rc5 {[%clk
0:01:04.6]} 39. Kd2 {[%clk 0:00:27.7]} 39... Nb6 {[%clk 0:01:02.4]} 40. Ra3
{[%clk 0:00:21.7]} 40... a4 {[%clk 0:00:57]} 41. Kd3 {[%clk 0:00:19.5]} 41...
Nc4 {[%clk 0:00:53.9]} 42. Nxc4 {[%clk 0:00:16.6]} 42... Rxc4 {[%clk 0:00:54.2]}
43. g3 {[%clk 0:00:16]} 43... g5 {[%clk 0:00:53.8]} 44. hxg5+ {[%clk 0:00:14.6]}
44... hxg5 {[%clk 0:00:53.7]} 45. Ke3 {[%clk 0:00:14]} 45... Ke6 {[%clk
0:00:50.9]} 46. Kd3 {[%clk 0:00:13.2]} 46... e4+ {[%clk 0:00:49.9]} 47. fxe4
{[%clk 0:00:12.8]} 47... fxe4+ {[%clk 0:00:49.8]} 48. Kd2 {[%clk 0:00:12.7]}
48... Kf5 {[%clk 0:00:48]} 49. Ke3 {[%clk 0:00:12.8]} 49... Kg4 {[%clk
0:00:47.7]} 50. Kf2 {[%clk 0:00:12.1]} 50... e3+ {[%clk 0:00:48]} 51. Kxe3
{[%clk 0:00:12.4]} 51... Kxg3 {[%clk 0:00:48.4]} 52. Kd3 {[%clk 0:00:06]} 52...
g4 {[%clk 0:00:47.2]} 53. Ke3 {[%clk 0:00:06.3]} 53... Kh2 {[%clk 0:00:46]} 54.
Kd3 {[%clk 0:00:06.8]} 54... g3 {[%clk 0:00:46.4]} 55. Ke3 {[%clk 0:00:07.7]}
55... g2 {[%clk 0:00:46.7]} 56. Kd3 {[%clk 0:00:08.6]} 56... g1=Q {[%clk
0:00:45.6]} 57. Rxa4 {[%clk 0:00:07]} 57... Rxa4 {[%clk 0:00:44.1]} 58. c4
{[%clk 0:00:06.7]} 58... bxc4+ {[%clk 0:00:43.6]} 59. Kc3 {[%clk 0:00:06.1]}
59... Rxa2 {[%clk 0:00:42.9]} 60. Kb4 {[%clk 0:00:05.7]} 60... Qb1+ {[%clk
0:00:42.2]} 61. Kxc4 {[%clk 0:00:05.3]} 61... Rc2+ {[%clk 0:00:41.5]} 62. Kd5
{[%clk 0:00:05.7]} 62... Qd1+ {[%clk 0:00:41.5]} 63. Ke4 {[%clk 0:00:06.3]}
63... Re2+ {[%clk 0:00:41.8]} 64. Kf3 {[%clk 0:00:07.1]} 64... Qf1+ {[%clk
0:00:42]} 65. Kg4 {[%clk 0:00:07.9]} 65... Rg2+ {[%clk 0:00:41.6]} 66. Kh4
{[%clk 0:00:08.8]} 66... Qf4+ {[%clk 0:00:41.1]} 67. Kh5 {[%clk 0:00:09.7]}
67... Qg5# {[%clk 0:00:41.4]} 0-1

[Event "*** SCC Grand Prix: Titled Tuesday Blitz"]
[Site "Chess.com"]
[Date "2020.08.25"]
[Round "7"]
[White "MikeSailer"]
[Black "sertalzin"]
[Result "1-0"]
[WhiteElo "2169"]
[BlackElo "1865"]
[TimeControl "180+1"]
[EndTime "11:20:48 PDT"]
[Termination "MikeSailer won on time"]

1. d4 {[%clk 0:03:00.3]} 1... d5 {[%clk 0:02:59.2]} 2. Nf3 {[%clk 0:03:00.4]}
2... Nf6 {[%clk 0:02:58.5]} 3. Bf4 {[%clk 0:03:00.8]} 3... g6 {[%clk 0:02:58.2]}
4. e3 {[%clk 0:03:01.3]} 4... Bg7 {[%clk 0:02:58.1]} 5. Be2 {[%clk 0:03:02]}
5... O-O {[%clk 0:02:57.9]} 6. h3 {[%clk 0:03:02.4]} 6... c5 {[%clk 0:02:57.1]}
7. O-O {[%clk 0:03:01.2]} 7... Nc6 {[%clk 0:02:57]} 8. c3 {[%clk 0:03:00.9]}
8... Nd7 {[%clk 0:02:56.6]} 9. Bh2 {[%clk 0:02:59.7]} 9... e5 {[%clk 0:02:56.3]}
10. dxe5 {[%clk 0:02:59.5]} 10... Ndxe5 {[%clk 0:02:56.1]} 11. Nxe5 {[%clk
0:02:59.1]} 11... Nxe5 {[%clk 0:02:55.9]} 12. Nd2 {[%clk 0:02:59.8]} 12... Be6
{[%clk 0:02:55.5]} 13. Nf3 {[%clk 0:03:00.2]} 13... Nxf3+ {[%clk 0:02:54.8]} 14.
Bxf3 {[%clk 0:03:00.2]} 14... Qd7 {[%clk 0:02:54.7]} 15. Qe2 {[%clk 0:02:49.4]}
15... Rad8 {[%clk 0:02:52.9]} 16. Rfd1 {[%clk 0:02:49.3]} 16... Qe7 {[%clk
0:02:52.3]} 17. Rd2 {[%clk 0:02:46.4]} 17... Rd7 {[%clk 0:02:48.1]} 18. Rad1
{[%clk 0:02:46.1]} 18... Rfd8 {[%clk 0:02:47.6]} 19. Qb5 {[%clk 0:02:46.4]}
19... b6 {[%clk 0:02:08.5]} 20. Qc6 {[%clk 0:02:32.4]} 20... d4 {[%clk
0:01:49.9]} 21. exd4 {[%clk 0:02:16.4]} 21... cxd4 {[%clk 0:01:49.2]} 22. cxd4
{[%clk 0:02:15.7]} 22... Rxd4 {[%clk 0:01:38.9]} 23. Rxd4 {[%clk 0:02:14.3]}
23... Bxd4 {[%clk 0:01:19.9]} 24. b3 {[%clk 0:01:39.3]} 24... Bf6 {[%clk
0:00:57.3]} 25. Rxd8+ {[%clk 0:01:33.3]} 25... Qxd8 {[%clk 0:00:56.6]} 26. Bd6
{[%clk 0:01:27.9]} 26... Qd7 {[%clk 0:00:40.4]} 27. Qa8+ {[%clk 0:01:21]} 27...
Qd8 {[%clk 0:00:26.1]} 28. Qc6 {[%clk 0:00:55]} 28... Qd7 {[%clk 0:00:25.7]} 29.
Kf1 {[%clk 0:00:49.8]} 29... Qxc6 {[%clk 0:00:24.7]} 30. Bxc6 {[%clk 0:00:50.1]}
30... Kg7 {[%clk 0:00:18.3]} 31. f4 {[%clk 0:00:45.1]} 31... Bd4 {[%clk
0:00:17.1]} 32. g4 {[%clk 0:00:42.8]} 32... f5 {[%clk 0:00:16.4]} 33. g5 {[%clk
0:00:37.7]} 33... a5 {[%clk 0:00:15.7]} 34. Ke2 {[%clk 0:00:29.9]} 34... Kf7
{[%clk 0:00:13.1]} 35. Kd3 {[%clk 0:00:28.5]} 35... Bf2 {[%clk 0:00:07.4]} 36.
Be5 {[%clk 0:00:27.2]} 36... Bg1 {[%clk 0:00:05.8]} 37. Bf3 {[%clk 0:00:21.5]}
37... Bc5 {[%clk 0:00:05.8]} 38. h4 {[%clk 0:00:21.1]} 38... Bf2 {[%clk
0:00:05.8]} 39. h5 {[%clk 0:00:20.9]} 39... Bc5 {[%clk 0:00:05.3]} 40. h6 {[%clk
0:00:19.8]} 40... Bf2 {[%clk 0:00:04.7]} 41. Bc6 {[%clk 0:00:15.3]} 41... Bc5
{[%clk 0:00:04.9]} 42. Bb5 {[%clk 0:00:15.6]} 42... Bf2 {[%clk 0:00:04.6]} 43.
Bc4 {[%clk 0:00:16]} 43... Bc5 {[%clk 0:00:04.4]} 44. Bxe6+ {[%clk 0:00:09]}
44... Kxe6 {[%clk 0:00:03.7]} 45. Kc4 {[%clk 0:00:09.8]} 45... Be3 {[%clk
0:00:03]} 46. Kb5 {[%clk 0:00:09.7]} 46... Kd7 {[%clk 0:00:02.7]} 47. a4 {[%clk
0:00:06.4]} 47... Kc8 {[%clk 0:00:02.2]} 48. Kc6 {[%clk 0:00:06.2]} 1-0